[Event "Blitz tournament"]
[Site "Biel, Switzerland"]
[Date "2021.07.31"]
[Round "12.3"]
[White "Alekseenko, Kirill"]
[Black "Nihal, Sarin"]
[Result "1/2-1/2"]
[ECO "C78"]
[WhiteElo "2580"]
[BlackElo "2658"]
[PlyCount "81"]
[EventDate "2021.??.??"]
[EventType "blitz"]
[TimeControl "3+2"]
[WhiteClock "0:00:03"]
[BlackClock "0:00:13"]

1. e4 {[%emt 0:00:00]} e5 {[%emt 0:00:00]} 2. Nf3 {[%emt 0:00:00]} Nc6 {
[%emt 0:00:00]} 3. Bb5 {[%emt 0:00:00]} a6 {[%emt 0:00:00]} 4. Ba4 {[%emt 0:00:
00]} Nf6 {[%emt 0:00:00]} 5. O-O {[%emt 0:00:00]} Bc5 {[%emt 0:00:00]} 6. Bxc6
{[%emt 0:00:00]} dxc6 {[%emt 0:00:00]} 7. d3 {[%emt 0:00:00]} Qe7 {[%emt 0:00:
00]} 8. Qe2 {[%emt 0:00:00]} Bg4 {[%emt 0:00:00]} 9. Be3 {[%emt 0:00:00]} Nd7 {
[%emt 0:00:00]} 10. Nbd2 {[%emt 0:00:00]} f6 {[%emt 0:00:00]} 11. a3 {[%emt 0:
00:00]} O-O {[%emt 0:00:00]} 12. h3 {[%emt 0:00:00]} Bh5 {[%emt 0:00:00]} 13.
g4 {[%emt 0:00:00]} Bf7 {[%emt 0:00:00]} 14. Nh4 {[%emt 0:00:00]} g6 {[%emt 0:
00:00]} 15. Ng2 {[%emt 0:00:00]} Rad8 {[%emt 0:00:00]} 16. f4 {[%emt 0:00:00]}
exf4 {[%emt 0:00:00]} 17. Nxf4 {[%emt 0:00:00]} Bd6 {[%emt 0:00:00]} 18. Nf3 {
[%emt 0:00:00]} c5 {[%emt 0:00:00]} 19. b3 {[%emt 0:00:00]} b5 {[%emt 0:00:00]}
20. a4 {[%emt 0:00:00]} c4 {[%emt 0:00:00]} 21. axb5 {[%emt 0:00:00]} axb5 {
[%emt 0:00:00]} 22. bxc4 {[%emt 0:00:00]} bxc4 {[%emt 0:00:00]} 23. Ra5 {
[%emt 0:00:00]} cxd3 {[%emt 0:00:00]} 24. cxd3 {[%emt 0:00:00]} c6 {[%emt 0:00:
00]} 25. Qc2 {[%emt 0:00:00]} Ne5 {[%emt 0:00:00]} 26. Nxe5 {[%emt 0:00:07]}
fxe5 {[%emt 0:00:00]} 27. Ng2 {[%emt 0:00:13]} Bb4 {[%emt 0:00:00]} 28. Ra7 {
[%emt 0:00:08]} Rd7 {[%emt 0:00:05]} 29. Rxd7 {[%emt 0:00:04]} Qxd7 {[%emt 0:
00:01]} 30. Bh6 {[%emt 0:00:01]} Rd8 {[%emt 0:00:06]} 31. Kh2 {[%emt 0:00:07]}
Qxd3 {[%emt 0:00:24]} 32. Qf2 {[%emt 0:00:01]} Qd7 {[%emt 0:00:01]} 33. Qf6 {
[%emt 0:00:07]} Bf8 {[%emt 0:00:01]} 34. g5 {[%emt 0:00:12]} Qe7 {[%emt 0:00:
21]} 35. Qxc6 {[%emt 0:00:09]} Bxh6 {[%emt 0:00:05]} 36. gxh6 {[%emt 0:00:01]}
Qg5 {[%emt 0:00:01]} 37. Qc7 {[%emt 0:00:05]} Rf8 {[%emt 0:00:02]} 38. Rf3 {
[%emt 0:00:05]} Qxh6 {[%emt 0:00:03]} 39. Qxe5 {[%emt 0:00:02]} Qg7 {[%emt 0:
00:02]} 40. Qf4 {[%emt 0:00:02]} Be6 {[%emt 0:00:03]} 41. Qxf8+ {[%emt 0:00:03]
} 1/2-1/2

[Event "Blitz tournament"]
[Site "Biel, Switzerland"]
[Date "2021.07.31"]
[Round "13.2"]
[White "Gelfand, Boris"]
[Black "Alekseenko, Kirill"]
[Result "0-1"]
[ECO "E10"]
[WhiteElo "2691"]
[BlackElo "2580"]
[PlyCount "82"]
[EventDate "2021.??.??"]
[EventType "blitz"]
[TimeControl "3+2"]
[WhiteClock "0:00:09"]
[BlackClock "0:00:04"]

1. d4 {[%emt 0:00:00]} Nf6 {[%emt 0:00:00]} 2. Nf3 {[%emt 0:00:00]} e6 {
[%emt 0:00:00]} 3. c4 {[%emt 0:00:00]} h6 {[%emt 0:00:00]} 4. g3 {[%emt 0:00:
00]} Bb4+ {[%emt 0:00:00]} 5. Bd2 {[%emt 0:00:00]} Be7 {[%emt 0:00:00]} 6. Bg2
{[%emt 0:00:01]} d5 7. O-O {[%emt 0:00:00]} O-O {[%emt 0:00:00]} 8. Qc2 {
[%emt 0:00:00]} Nbd7 {[%emt 0:00:00]} 9. Nc3 {[%emt 0:00:00]} c6 {[%emt 0:00:
00]} 10. b3 {[%emt 0:00:00]} a5 {[%emt 0:00:00]} 11. e4 {[%emt 0:00:00]} dxe4 {
[%emt 0:00:00]} 12. Nxe4 {[%emt 0:00:00]} Nxe4 {[%emt 0:00:00]} 13. Qxe4 {
[%emt 0:00:00]} Nf6 {[%emt 0:00:00]} 14. Qc2 {[%emt 0:00:00]} Qb6 {[%emt 0:00:
00]} 15. Bc3 {[%emt 0:00:00]} Rd8 {[%emt 0:00:00]} 16. Ne5 {[%emt 0:00:00]} Bd7
{[%emt 0:00:00]} 17. Rad1 {[%emt 0:00:00]} Be8 {[%emt 0:00:00]} 18. Kh1 {
[%emt 0:00:00]} a4 {[%emt 0:00:04]} 19. bxa4 {[%emt 0:00:00]} Qa6 {[%emt 0:00:
17]} 20. a5 {[%emt 0:00:00]} Nd7 {[%emt 0:00:02]} 21. Nxd7 {[%emt 0:00:00]}
Bxd7 {[%emt 0:00:01]} 22. Qb3 {[%emt 0:00:00]} Bd6 {[%emt 0:00:07]} 23. Rfe1 {
[%emt 0:00:02]} Bc7 {[%emt 0:00:01]} 24. d5 {[%emt 0:00:01]} Bxa5 {[%emt 0:00:
16]} 25. d6 {[%emt 0:00:29]} Bxc3 {[%emt 0:00:01]} 26. Qxc3 {[%emt 0:00:01]}
Qa3 {[%emt 0:00:03]} 27. Qd4 {[%emt 0:00:05]} Ra5 {[%emt 0:00:04]} 28. Rb1 {
[%emt 0:00:04]} Rb8 {[%emt 0:00:00]} 29. Qb6 {[%emt 0:00:04]} Raa8 {[%emt 0:00:
05]} 30. Qc7 {[%emt 0:00:02]} Rd8 {[%emt 0:00:00]} 31. Red1 {[%emt 0:00:04]}
Qxa2 {[%emt 0:00:03]} 32. Rxb7 {[%emt 0:00:01]} Qxf2 {[%emt 0:00:02]} 33. Qb6 {
[%emt 0:00:09]} Qe2 {[%emt 0:00:03]} 34. Rg1 {[%emt 0:00:03]} Qxc4 {[%emt 0:00:
02]} 35. Rc7 {[%emt 0:00:04]} Be8 {[%emt 0:00:02]} 36. Qb7 {[%emt 0:00:03]}
Rdb8 {[%emt 0:00:03]} 37. Rxc6 {[%emt 0:00:04]} Bxc6 {[%emt 0:00:03]} 38. Qxc6
{[%emt 0:00:01]} Qxc6 {[%emt 0:00:01]} 39. Bxc6 {[%emt 0:00:01]} Ra6 {[%emt 0:
00:01]} 40. Rc1 {[%emt 0:00:02]} Rd8 {[%emt 0:00:01]} 41. d7 {[%emt 0:00:00]}
Rxc6 {[%emt 0:00:04]} 0-1

[Event "Blitz tournament"]
[Site "Biel, Switzerland"]
[Date "2021.07.31"]
[Round "13.3"]
[White "Nihal, Sarin"]
[Black "Studer, Noël"]
[Result "1-0"]
[ECO "D00"]
[WhiteElo "2658"]
[BlackElo "2451"]
[PlyCount "59"]
[EventDate "2021.??.??"]
[EventType "blitz"]
[TimeControl "3+2"]
[WhiteClock "0:00:40"]
[BlackClock "0:00:03"]

1. d4 {[%emt 0:00:00]} Nf6 {[%emt 0:00:00]} 2. Bf4 {[%emt 0:00:00]} d5 {
[%emt 0:00:00]} 3. e3 {[%emt 0:00:00]} c5 {[%emt 0:00:00]} 4. dxc5 {[%emt 0:00:
00]} Nc6 {[%emt 0:00:00]} 5. Bb5 {[%emt 0:00:00]} e6 {[%emt 0:00:00]} 6. b4 {
[%emt 0:00:01]} a5 7. c3 {[%emt 0:00:00]} Bd7 {[%emt 0:00:00]} 8. Qb3 {[%emt 0:
00:00]} Be7 {[%emt 0:00:00]} 9. Nf3 {[%emt 0:00:00]} O-O {[%emt 0:00:00]} 10.
O-O {[%emt 0:00:00]} Ne4 {[%emt 0:00:00]} 11. Nbd2 {[%emt 0:00:00]} Nxd2 {
[%emt 0:00:00]} 12. Nxd2 {[%emt 0:00:00]} Bf6 {[%emt 0:00:00]} 13. Bxc6 {
[%emt 0:00:00]} Bxc6 {[%emt 0:00:00]} 14. b5 {[%emt 0:00:00]} a4 {[%emt 0:00:
00]} 15. Qb4 {[%emt 0:00:00]} Bd7 {[%emt 0:00:00]} 16. Bd6 {[%emt 0:00:00]} Re8
{[%emt 0:00:00]} 17. Rab1 {[%emt 0:00:00]} Ra5 {[%emt 0:00:00]} 18. c4 {
[%emt 0:00:00]} h5 {[%emt 0:00:16]} 19. Rfd1 {[%emt 0:00:00]} h4 {[%emt 0:00:
06]} 20. h3 {[%emt 0:00:00]} e5 {[%emt 0:00:18]} 21. cxd5 {[%emt 0:00:00]} Rxb5
{[%emt 0:00:00]} 22. Qc4 {[%emt 0:00:00]} Rxb1 {[%emt 0:00:06]} 23. Rxb1 {
[%emt 0:00:00]} Qc8 {[%emt 0:00:04]} 24. Ne4 {[%emt 0:00:00]} Bd8 {[%emt 0:00:
01]} 25. c6 {[%emt 0:00:17]} bxc6 {[%emt 0:00:01]} 26. Rb8 {[%emt 0:00:01]}
Qxb8 {[%emt 0:00:05]} 27. Bxb8 {[%emt 0:00:01]} cxd5 {[%emt 0:00:02]} 28. Qxd5
{[%emt 0:00:02]} Be6 {[%emt 0:00:01]} 29. Qb5 {[%emt 0:00:04]} Rf8 {[%emt 0:00:
03]} 30. Bd6 {[%emt 0:00:02]} 1-0

[Event "Blitz tournament"]
[Site "Biel, Switzerland"]
[Date "2021.07.31"]
[Round "13.4"]
[White "Keymer, Vincent"]
[Black "Lagarde, Maxime"]
[Result "0-1"]
[ECO "B08"]
[WhiteElo "2474"]
[BlackElo "2630"]
[PlyCount "102"]
[EventDate "2021.??.??"]
[EventType "blitz"]
[TimeControl "3+2"]
[WhiteClock "0:00:04"]
[BlackClock "0:00:10"]

1. Nf3 {[%emt 0:00:00]} Nc6 {[%emt 0:00:00]} 2. d4 {[%emt 0:00:00]} d6 {
[%emt 0:00:00]} 3. e4 {[%emt 0:00:00]} Nf6 {[%emt 0:00:00]} 4. Nc3 {[%emt 0:00:
00]} g6 {[%emt 0:00:00]} 5. h3 {[%emt 0:00:00]} Bg7 {[%emt 0:00:00]} 6. Be3 {
[%emt 0:00:00]} O-O {[%emt 0:00:00]} 7. Qd2 {[%emt 0:00:00]} e5 {[%emt 0:00:00]
} 8. O-O-O {[%emt 0:00:00]} exd4 {[%emt 0:00:00]} 9. Nxd4 {[%emt 0:00:00]} Nxd4
{[%emt 0:00:00]} 10. Bxd4 {[%emt 0:00:00]} Be6 {[%emt 0:00:00]} 11. g4 {
[%emt 0:00:00]} c5 {[%emt 0:00:00]} 12. Be3 {[%emt 0:00:00]} Qa5 {[%emt 0:00:
00]} 13. Bh6 {[%emt 0:00:00]} Bxh6 {[%emt 0:00:00]} 14. Qxh6 {[%emt 0:00:00]}
b5 {[%emt 0:00:00]} 15. Qf4 {[%emt 0:00:00]} b4 {[%emt 0:00:00]} 16. Qxf6 {
[%emt 0:00:00]} bxc3 {[%emt 0:00:00]} 17. bxc3 {[%emt 0:00:20]} d5 {[%emt 0:00:
00]} 18. exd5 {[%emt 0:00:10]} Qa3+ {[%emt 0:00:00]} 19. Kd2 {[%emt 0:00:06]}
Bxd5 {[%emt 0:00:00]} 20. f3 {[%emt 0:00:04]} Rfe8 {[%emt 0:00:18]} 21. Bd3 {
[%emt 0:00:02]} c4 {[%emt 0:00:04]} 22. Be4 {[%emt 0:00:05]} Bxe4 {[%emt 0:00:
11]} 23. fxe4 {[%emt 0:00:01]} Re6 {[%emt 0:00:11]} 24. Qf3 {[%emt 0:00:01]}
Rae8 {[%emt 0:00:03]} 25. Rhf1 {[%emt 0:00:04]} Qe7 {[%emt 0:00:04]} 26. Rde1 {
[%emt 0:00:03]} Rd8+ {[%emt 0:00:02]} 27. Ke3 {[%emt 0:00:01]} Rd7 {[%emt 0:00:
04]} 28. Kf2 {[%emt 0:00:02]} Rd2+ {[%emt 0:00:02]} 29. Re2 {[%emt 0:00:03]}
Rxe2+ 30. Qxe2 {[%emt 0:00:01]} Rxe4 {[%emt 0:00:03]} 31. Qf3 {[%emt 0:00:01]}
Qe5 {[%emt 0:00:03]} 32. Kg2 {[%emt 0:00:02]} Re2+ {[%emt 0:00:01]} 33. Rf2 {
[%emt 0:00:00]} Rxf2+ {[%emt 0:00:02]} 34. Kxf2 {[%emt 0:00:04]} Qh2+ {[%emt 0:
00:01]} 35. Ke3 {[%emt 0:00:04]} Qxc2 {[%emt 0:00:04]} 36. Kd4 {[%emt 0:00:01]}
Qxa2 {[%emt 0:00:03]} 37. Qf6 {[%emt 0:00:02]} Qd2+ {[%emt 0:00:02]} 38. Kxc4 {
[%emt 0:00:01]} Qd7 {[%emt 0:00:01]} 39. Kb4 {[%emt 0:00:03]} Qb7+ {[%emt 0:00:
01]} 40. Ka3 {[%emt 0:00:02]} Qb6 {[%emt 0:00:02]} 41. Qe5 {[%emt 0:00:03]}
Qa6+ {[%emt 0:00:04]} 42. Kb4 {[%emt 0:00:01]} Qb6+ {[%emt 0:00:00]} 43. Ka3 {
[%emt 0:00:01]} Kf8 {[%emt 0:00:02]} 44. c4 {[%emt 0:00:02]} Qa6+ {[%emt 0:00:
01]} 45. Kb4 {[%emt 0:00:01]} Qb6+ {[%emt 0:00:01]} 46. Ka3 {[%emt 0:00:02]}
Qe6 {[%emt 0:00:03]} 47. Qb8+ {[%emt 0:00:02]} Kg7 {[%emt 0:00:01]} 48. c5 {
[%emt 0:00:05]} Qe3+ {[%emt 0:00:03]} 49. Kb4 {[%emt 0:00:01]} Qd4+ {[%emt 0:
00:01]} 50. Ka5 {[%emt 0:00:04]} Qxc5+ {[%emt 0:00:01]} 51. Ka6 {[%emt 0:00:01]
} Qb6+ {[%emt 0:00:01]} 0-1

[Event "Blitz tournament"]
[Site "Biel, Switzerland"]
[Date "2021.07.31"]
[Round "14.1"]
[White "Kamsky, Gata"]
[Black "Keymer, Vincent"]
[Result "1/2-1/2"]
[ECO "B13"]
[WhiteElo "2644"]
[BlackElo "2474"]
[PlyCount "144"]
[EventDate "2021.??.??"]
[EventType "blitz"]
[TimeControl "3+2"]
[WhiteClock "0:00:10"]
[BlackClock "0:00:07"]

1. e4 {[%emt 0:00:00]} c6 {[%emt 0:00:00]} 2. d4 {[%emt 0:00:00]} d5 {[%emt 0:
00:00]} 3. exd5 {[%emt 0:00:00]} cxd5 {[%emt 0:00:00]} 4. Bd3 {[%emt 0:00:00]}
Nf6 {[%emt 0:00:00]} 5. c3 {[%emt 0:00:00]} Bg4 {[%emt 0:00:00]} 6. Nf3 {
[%emt 0:00:00]} e6 {[%emt 0:00:00]} 7. Bf4 {[%emt 0:00:00]} Nc6 {[%emt 0:00:00]
} 8. Nbd2 {[%emt 0:00:00]} Bd6 {[%emt 0:00:00]} 9. Bxd6 {[%emt 0:00:00]} Qxd6 {
[%emt 0:00:00]} 10. O-O {[%emt 0:00:00]} O-O {[%emt 0:00:00]} 11. Re1 {[%emt 0:
00:00]} Rab8 {[%emt 0:00:00]} 12. a4 {[%emt 0:00:00]} a6 {[%emt 0:00:00]} 13.
a5 {[%emt 0:00:00]} Rfe8 {[%emt 0:00:00]} 14. h3 {[%emt 0:00:00]} Bh5 {[%emt 0:
00:00]} 15. Qa4 {[%emt 0:00:00]} Nd7 {[%emt 0:00:00]} 16. Re3 {[%emt 0:00:00]}
Bg6 {[%emt 0:00:00]} 17. Bf1 {[%emt 0:00:00]} b5 {[%emt 0:00:00]} 18. axb6 {
[%emt 0:00:00]} Nxb6 {[%emt 0:00:00]} 19. Qa3 {[%emt 0:00:00]} Qc7 {[%emt 0:00:
00]} 20. Nb3 {[%emt 0:00:00]} a5 {[%emt 0:00:00]} 21. Nc5 {[%emt 0:00:00]} Ra8
{[%emt 0:00:00]} 22. Bb5 {[%emt 0:00:00]} Rec8 {[%emt 0:00:00]} 23. Qb3 {
[%emt 0:00:00]} Bh5 {[%emt 0:00:01]} 24. Nd2 {[%emt 0:00:00]} Ne7 {[%emt 0:00:
07]} 25. Ree1 {[%emt 0:00:00]} Bg6 {[%emt 0:00:10]} 26. Bf1 {[%emt 0:00:00]}
Nf5 {[%emt 0:00:14]} 27. Ra3 {[%emt 0:00:00]} Ra7 {[%emt 0:00:14]} 28. Rea1 {
[%emt 0:00:00]} Rca8 {[%emt 0:00:01]} 29. Nf3 {[%emt 0:00:13]} Nd6 {[%emt 0:00:
08]} 30. Ne5 {[%emt 0:00:05]} Bf5 {[%emt 0:00:03]} 31. Qd1 {[%emt 0:00:06]} f6
{[%emt 0:00:04]} 32. Ned3 {[%emt 0:00:08]} Ndc4 {[%emt 0:00:04]} 33. R3a2 {
[%emt 0:00:08]} h6 {[%emt 0:00:03]} 34. b3 {[%emt 0:00:08]} Nd6 {[%emt 0:00:01]
} 35. g4 {[%emt 0:00:05]} Bxd3 {[%emt 0:00:01]} 36. Qxd3 {[%emt 0:00:01]} e5 {
[%emt 0:00:02]} 37. dxe5 {[%emt 0:00:06]} fxe5 {[%emt 0:00:02]} 38. Na4 {
[%emt 0:00:01]} d4 {[%emt 0:00:05]} 39. cxd4 {[%emt 0:00:03]} e4 40. Qg3 {
[%emt 0:00:02]} Nxa4 {[%emt 0:00:04]} 41. Rxa4 {[%emt 0:00:02]} Qd8 {[%emt 0:
00:00]} 42. b4 {[%emt 0:00:07]} Ne8 {[%emt 0:00:02]} 43. bxa5 {[%emt 0:00:04]}
Rxa5 {[%emt 0:00:02]} 44. Rxa5 {[%emt 0:00:01]} Rxa5 {[%emt 0:00:00]} 45. Rxa5
{[%emt 0:00:05]} Qxa5 {[%emt 0:00:01]} 46. Qb8 {[%emt 0:00:02]} Kf7 {[%emt 0:
00:03]} 47. Bc4+ {[%emt 0:00:07]} Ke7 {[%emt 0:00:02]} 48. Qb7+ {[%emt 0:00:04]
} Qc7 {[%emt 0:00:04]} 49. Qxe4+ {[%emt 0:00:01]} Kd8 {[%emt 0:00:03]} 50. Bf1
{[%emt 0:00:03]} Qd6 {[%emt 0:00:02]} 51. f4 {[%emt 0:00:02]} Nf6 {[%emt 0:00:
01]} 52. Qe5 {[%emt 0:00:01]} Qb6 {[%emt 0:00:03]} 53. Bg2 {[%emt 0:00:01]}
Qb1+ {[%emt 0:00:04]} 54. Kh2 {[%emt 0:00:01]} Qb2 {[%emt 0:00:01]} 55. g5 {
[%emt 0:00:01]} hxg5 {[%emt 0:00:02]} 56. fxg5 {[%emt 0:00:01]} Nd7 {[%emt 0:
00:02]} 57. Qxg7 {[%emt 0:00:01]} Qb8+ {[%emt 0:00:01]} 58. Kh1 {[%emt 0:00:02]
} Qb1+ {[%emt 0:00:01]} 59. Kh2 {[%emt 0:00:01]} Qb8+ {[%emt 0:00:02]} 60. Kg1
{[%emt 0:00:01]} Qg3 {[%emt 0:00:04]} 61. Qg8+ {[%emt 0:00:02]} Kc7 {[%emt 0:
00:01]} 62. Qc4+ {[%emt 0:00:01]} Kd8 {[%emt 0:00:00]} 63. Qd5 {[%emt 0:00:09]}
Qe3+ {[%emt 0:00:03]} 64. Kf1 {[%emt 0:00:01]} Kc7 {[%emt 0:00:03]} 65. Qc4+ {
[%emt 0:00:03]} Kd8 {[%emt 0:00:01]} 66. Qd5 {[%emt 0:00:06]} Qg3 {[%emt 0:00:
04]} 67. Qf5 {[%emt 0:00:01]} Qe3 {[%emt 0:00:03]} 68. g6 {[%emt 0:00:01]} Qxd4
{[%emt 0:00:02]} 69. h4 {[%emt 0:00:01]} Qxh4 {[%emt 0:00:01]} 70. g7 {[%emt 0:
00:01]} Qc4+ {[%emt 0:00:01]} 71. Kg1 {[%emt 0:00:01]} Qd4+ {[%emt 0:00:01]}
72. Kh2 {[%emt 0:00:01]} Qxg7 {[%emt 0:00:01]} 1/2-1/2

[Event "Blitz tournament"]
[Site "Biel, Switzerland"]
[Date "2021.07.31"]
[Round "14.2"]
[White "Lagarde, Maxime"]
[Black "Nihal, Sarin"]
[Result "1/2-1/2"]
[ECO "C29"]
[WhiteElo "2630"]
[BlackElo "2658"]
[PlyCount "108"]
[EventDate "2021.??.??"]
[EventType "blitz"]
[TimeControl "3+2"]
[WhiteClock "0:00:09"]
[BlackClock "0:00:07"]

1. e4 {[%emt 0:00:00]} e5 {[%emt 0:00:00]} 2. Nc3 {[%emt 0:00:00]} Nf6 {
[%emt 0:00:00]} 3. f4 {[%emt 0:00:00]} d5 {[%emt 0:00:00]} 4. fxe5 {[%emt 0:00:
00]} Nxe4 {[%emt 0:00:00]} 5. Qf3 {[%emt 0:00:00]} Nxc3 {[%emt 0:00:00]} 6.
dxc3 {[%emt 0:00:00]} Nc6 {[%emt 0:00:00]} 7. Bf4 {[%emt 0:00:00]} Be6 {
[%emt 0:00:00]} 8. O-O-O {[%emt 0:00:00]} Qd7 {[%emt 0:00:00]} 9. Qg3 {[%emt 0:
00:00]} a6 {[%emt 0:00:00]} 10. Nf3 {[%emt 0:00:00]} O-O-O {[%emt 0:00:00]} 11.
h4 {[%emt 0:00:00]} h6 {[%emt 0:00:00]} 12. Bd3 {[%emt 0:00:00]} Kb8 {[%emt 0:
00:00]} 13. Kb1 {[%emt 0:00:00]} g6 {[%emt 0:00:00]} 14. Nd4 {[%emt 0:00:00]}
Nxd4 {[%emt 0:00:00]} 15. cxd4 {[%emt 0:00:00]} c5 {[%emt 0:00:00]} 16. dxc5 {
[%emt 0:00:00]} Bxc5 {[%emt 0:00:00]} 17. Rhf1 {[%emt 0:00:00]} Rc8 {[%emt 0:
00:00]} 18. Bc1 {[%emt 0:00:00]} Rc6 {[%emt 0:00:00]} 19. Rf4 {[%emt 0:00:00]}
h5 {[%emt 0:00:00]} 20. Rdf1 {[%emt 0:00:00]} Rhc8 {[%emt 0:00:00]} 21. Rxf7 {
[%emt 0:00:00]} Bxf7 {[%emt 0:00:15]} 22. e6+ Qc7 23. Bf4 {[%emt 0:00:00]} Bd6
{[%emt 0:00:02]} 24. Bxd6 {[%emt 0:00:35]} Qxd6 {[%emt 0:00:01]} 25. Qxd6+ {
[%emt 0:00:03]} Rxd6 {[%emt 0:00:01]} 26. exf7 {[%emt 0:00:02]} Rf8 {[%emt 0:
00:00]} 27. c4 {[%emt 0:00:08]} Kc7 {[%emt 0:00:18]} 28. Kc2 {[%emt 0:00:05]}
Kd7 {[%emt 0:00:03]} 29. cxd5 {[%emt 0:00:03]} Ke7 30. Be4 {[%emt 0:00:07]}
Rxf7 {[%emt 0:00:02]} 31. Bf3 {[%emt 0:00:00]} Rf4 {[%emt 0:00:05]} 32. Rh1 {
[%emt 0:00:05]} Rxf3 {[%emt 0:00:09]} 33. gxf3 {[%emt 0:00:01]} Rxd5 {[%emt 0:
00:01]} 34. Re1+ {[%emt 0:00:03]} Kf6 {[%emt 0:00:01]} 35. Re4 {[%emt 0:00:01]}
g5 {[%emt 0:00:05]} 36. hxg5+ {[%emt 0:00:01]} Kxg5 {[%emt 0:00:01]} 37. Re7 {
[%emt 0:00:01]} b5 {[%emt 0:00:05]} 38. b4 {[%emt 0:00:03]} Kf4 {[%emt 0:00:03]
} 39. Re6 {[%emt 0:00:02]} h4 {[%emt 0:00:04]} 40. Rxa6 {[%emt 0:00:02]} Kxf3 {
[%emt 0:00:06]} 41. a4 {[%emt 0:00:02]} bxa4 {[%emt 0:00:04]} 42. Rxa4 {
[%emt 0:00:01]} h3 {[%emt 0:00:01]} 43. Ra8 {[%emt 0:00:03]} Kg4 {[%emt 0:00:
03]} 44. Ra1 {[%emt 0:00:05]} h2 {[%emt 0:00:03]} 45. Kc3 {[%emt 0:00:02]} Kg3
{[%emt 0:00:01]} 46. Kc4 {[%emt 0:00:01]} Rf5 {[%emt 0:00:01]} 47. b5 {[%emt 0:
00:02]} Rf4+ {[%emt 0:00:01]} 48. Kc5 {[%emt 0:00:01]} Kg2 {[%emt 0:00:02]} 49.
b6 {[%emt 0:00:03]} Rf5+ {[%emt 0:00:01]} 50. Kd6 {[%emt 0:00:01]} Rf1 {
[%emt 0:00:04]} 51. Ra2+ {[%emt 0:00:02]} Rf2 {[%emt 0:00:01]} 52. Ra1 {
[%emt 0:00:01]} Rf1 {[%emt 0:00:03]} 53. Ra2+ {[%emt 0:00:01]} Rf2 {[%emt 0:00:
00]} 54. Ra1 {[%emt 0:00:00]} Rf1 1/2-1/2